[Event "The Schackveckan 2023: Göteborg open"]
[Site "Göteborgs schackcentrum, Vegagatan 20, Gothenburg, Sweden"]
[Date "2023.08.11"]
[Round "1.12"]
[White "Wesslen, Ulf"]
[Black "Al Saab, Ranny"]
[Result "1-0"]
[TimeControl "15 minutes + 5 seconds per move from move one (Round 1 - 4) / 90 minutes + 30 seconds per move from move one (Round 5 - 8)"]
[WhiteFideId "1705199"]
[BlackFideId "1768360"]
[WhiteElo "1916"]
[BlackElo "1598"]

1. e4 {[%clk 00:15:08]} {[%emt 00:00:02]} e5 {[%clk 00:14:48]} {[%emt
00:00:23]} 2. Nf3 {[%clk 00:15:05]} {[%emt 00:00:08]} Nf6 {[%clk 00:14:48]}
{[%emt 00:00:05]} 3. Nxe5 {[%clk 00:14:35]} {[%emt 00:00:35]} Nc6 {[%clk
00:14:51]} {[%emt 00:00:03]} 4. Nf3 {[%clk 00:13:01]} {[%emt 00:01:38]} Nxe4
{[%clk 00:14:54]} {[%emt 00:00:03]} 5. d4 {[%clk 00:13:03]} {[%emt 00:00:03]}
d5 {[%clk 00:14:52]} {[%emt 00:00:06]} 6. Be2 {[%clk 00:12:03]} {[%emt
00:01:05]} Be7 {[%clk 00:14:02]} {[%emt 00:00:55]} 7. O-O {[%clk 00:11:49]}
{[%emt 00:00:18]} O-O {[%clk 00:14:03]} {[%emt 00:00:06]} 8. c4 {[%clk
00:10:51]} {[%emt 00:01:03]} dxc4 {[%clk 00:12:13]} {[%emt 00:01:55]} 9. Bxc4
{[%clk 00:10:43]} {[%emt 00:00:12]} Bg4 {[%clk 00:11:50]} {[%emt 00:00:28]} 10.
Nc3 {[%clk 00:07:57]} {[%emt 00:02:52]} Ng5 {[%clk 00:09:17]} {[%emt 00:02:37]}
11. Be3 {[%clk 00:07:10]} {[%emt 00:00:53]} Nxf3+ {[%clk 00:08:48]} {[%emt
00:00:34]} 12. gxf3 {[%clk 00:07:13]} {[%emt 00:00:01]} Bh3 {[%clk 00:08:27]}
{[%emt 00:00:27]} 13. Re1 {[%clk 00:07:15]} {[%emt 00:00:03]} Qd6 {[%clk
00:08:08]} {[%emt 00:00:23]} 14. Kh1 {[%clk 00:06:39]} {[%emt 00:00:41]} Rad8
{[%clk 00:06:57]} {[%emt 00:01:16]} 15. Ne4 {[%clk 00:06:25]} {[%emt 00:00:19]}
Qb4 {[%clk 00:05:45]} {[%emt 00:01:17]} 16. b3 {[%clk 00:05:33]} {[%emt
00:00:58]} Ne5 {[%clk 00:05:14]} {[%emt 00:00:35]} 17. Bd2 {[%clk 00:04:59]}
{[%emt 00:00:39]} Rxd4 {[%clk 00:04:18]} {[%emt 00:01:02]} 18. Bxb4 {[%clk
00:04:32]} {[%emt 00:00:32]} Rxd1 {[%clk 00:04:21]} {[%emt 00:00:02]} 19. Bxe7
{[%clk 00:04:35]} {[%emt 00:00:01]} Rxa1 {[%clk 00:03:54]} {[%emt 00:00:32]} 20.
Rxa1 {[%clk 00:04:38]} {[%emt 00:00:02]} Re8 {[%clk 00:03:56]} {[%emt
00:00:04]} 21. Rd1 {[%clk 00:03:42]} {[%emt 00:01:01]} Nxc4 {[%clk 00:03:00]}
{[%emt 00:01:01]} 22. bxc4 {[%clk 00:03:41]} {[%emt 00:00:06]} h6 {[%clk
00:02:51]} {[%emt 00:00:14]} 23. Bc5 {[%clk 00:03:13]} {[%emt 00:00:32]} b6
{[%clk 00:02:49]} {[%emt 00:00:08]} 24. Be3 {[%clk 00:03:16]} {[%emt 00:00:02]}
a5 {[%clk 00:02:04]} {[%emt 00:00:50]} 25. Nc3 {[%clk 00:03:15]} {[%emt
00:00:06]} Be6 {[%clk 00:01:46]} {[%emt 00:00:22]} 26. Nd5 {[%clk 00:02:55]}
{[%emt 00:00:26]} Bh3 {[%clk 00:01:26]} {[%emt 00:00:26]} 27. Nxc7 {[%clk
00:02:55]} {[%emt 00:00:04]} Rc8 {[%clk 00:01:30]} 28. Bxb6 {[%clk 00:02:58]}
{[%emt 00:00:02]} a4 {[%clk 00:01:29]} {[%emt 00:00:06]} 29. c5 {[%clk
00:03:01]} {[%emt 00:00:01]} Kh7 {[%clk 00:01:16]} {[%emt 00:00:18]} 30. Nd5
{[%clk 00:03:05]} {[%emt 00:00:01]} Be6 {[%clk 00:01:11]} {[%emt 00:00:11]} 31.
Kg2 {[%clk 00:03:09]} Re8 {[%clk 00:00:47]} {[%emt 00:00:28]} 32. Nc7 {[%clk
00:03:12]} {[%emt 00:00:02]} Re7 {[%clk 00:00:46]} {[%emt 00:00:05]} 33. Re1
{[%clk 00:03:16]} {[%emt 00:00:03]} Bh3+ {[%clk 00:00:47]} {[%emt 00:00:03]} 34.
Kxh3 {[%clk 00:03:18]} {[%emt 00:00:02]} Rxe1 {[%clk 00:00:51]} {[%emt
00:00:01]} 35. Nb5 {[%clk 00:03:09]} {[%emt 00:00:15]} Rc1 {[%clk 00:00:46]}
{[%emt 00:00:09]} 36. Nd4 {[%clk 00:03:08]} {[%emt 00:00:07]} Rd1 {[%clk
00:00:42]} {[%emt 00:00:09]} 37. c6 {[%clk 00:03:12]} {[%emt 00:00:01]} Rc1
{[%clk 00:00:38]} {[%emt 00:00:09]} 38. c7 {[%clk 00:03:16]} {[%emt 00:00:01]}
Kg6 {[%clk 00:00:34]} {[%emt 00:00:10]} 39. Nb5 {[%clk 00:03:19]} Rc6 {[%clk
00:00:30]} {[%emt 00:00:08]} 40. Na7 {[%clk 00:03:22]} {[%emt 00:00:04]} Rxb6
{[%clk 00:00:32]} {[%emt 00:00:02]} 41. c8=Q {[%clk 00:03:24]} {[%emt
00:00:03]} Rf6 {[%clk 00:00:12]} {[%emt 00:00:26]} 42. Kg3 {[%clk 00:03:25]}
{[%emt 00:00:03]} Kh7 {[%clk 00:00:14]} {[%emt 00:00:03]} 43. Nc6 {[%clk
00:03:28]} {[%emt 00:00:02]} h5 {[%clk 00:00:16]} {[%emt 00:00:03]} 44. h4
{[%clk 00:03:31]} {[%emt 00:00:02]} Rg6+ {[%clk 00:00:19]} {[%emt 00:00:02]} 45.
Kh3 {[%clk 00:03:29]} {[%emt 00:00:07]} Rf6 {[%clk 00:00:22]} {[%emt 00:00:02]}
46. Ne5 {[%clk 00:03:31]} {[%emt 00:00:02]} Rf4 {[%clk 00:00:20]} {[%emt
00:00:08]} 47. Qc2+ {[%clk 00:03:31]} {[%emt 00:00:05]} f5 {[%clk 00:00:16]}
{[%emt 00:00:08]} 48. Kg3 {[%clk 00:03:31]} {[%emt 00:00:04]} 1-0

[Event "The Schackveckan 2023: Göteborg open"]
[Site "Göteborgs schackcentrum, Vegagatan 20, Gothenburg, Sweden"]
[Date "2023.08.11"]
[Round "1.13"]
[White "Hallberg, Kristjan"]
[Black "Granath, Jonas"]
[Result "0-1"]
[TimeControl "15 minutes + 5 seconds per move from move one (Round 1 - 4) / 90 minutes + 30 seconds per move from move one (Round 5 - 8)"]
[WhiteFideId "1717499"]
[BlackFideId "1761013"]
[WhiteElo "1592"]
[BlackElo "1896"]

1. d4 {[%clk 00:15:06]} {[%emt 00:00:03]} d5 {[%clk 00:15:08]} {[%emt
00:00:03]} 2. Nf3 {[%clk 00:15:07]} {[%emt 00:00:03]} c5 {[%clk 00:15:12]}
{[%emt 00:00:02]} 3. e3 {[%clk 00:15:07]} {[%emt 00:00:05]} cxd4 {[%clk
00:15:07]} {[%emt 00:00:10]} 4. exd4 {[%clk 00:15:08]} {[%emt 00:00:04]} Nf6
{[%clk 00:15:08]} {[%emt 00:00:04]} 5. Bd3 {[%clk 00:14:52]} {[%emt 00:00:21]}
Bg4 {[%clk 00:15:07]} {[%emt 00:00:06]} 6. Nbd2 {[%clk 00:14:45]} {[%emt
00:00:11]} e6 {[%clk 00:15:06]} {[%emt 00:00:07]} 7. c3 {[%clk 00:14:36]}
{[%emt 00:00:14]} Bd6 {[%clk 00:15:07]} {[%emt 00:00:03]} 8. O-O {[%clk
00:14:21]} {[%emt 00:00:19]} O-O {[%clk 00:15:09]} {[%emt 00:00:04]} 9. Re1
{[%clk 00:14:17]} {[%emt 00:00:10]} Qc7 {[%clk 00:14:57]} {[%emt 00:00:16]} 10.
h3 {[%clk 00:14:12]} {[%emt 00:00:09]} Bh5 {[%clk 00:14:56]} {[%emt 00:00:07]}
11. Qc2 {[%clk 00:13:45]} {[%emt 00:00:33]} Nc6 {[%clk 00:14:24]} {[%emt
00:00:36]} 12. b3 {[%clk 00:13:13]} {[%emt 00:00:37]} Rac8 {[%clk 00:14:25]}
{[%emt 00:00:04]} 13. Bb2 {[%clk 00:13:00]} {[%emt 00:00:18]} Nb4 {[%clk
00:13:52]} {[%emt 00:00:38]} 14. Qb1 {[%clk 00:12:37]} {[%emt 00:00:28]} Nxd3
{[%clk 00:13:50]} {[%emt 00:00:08]} 15. Qxd3 {[%clk 00:12:40]} {[%emt
00:00:01]} Bg6 {[%clk 00:13:43]} {[%emt 00:00:13]} 16. Qe2 {[%clk 00:12:39]}
{[%emt 00:00:05]} Ne4 {[%clk 00:13:27]} {[%emt 00:00:22]} 17. Ne5 {[%clk
00:12:26]} {[%emt 00:00:18]} Nxc3 {[%clk 00:12:26]} {[%emt 00:01:05]} 18. Qg4
{[%clk 00:11:34]} {[%emt 00:00:55]} Bf5 {[%clk 00:11:56]} {[%emt 00:00:38]} 19.
Qh5 {[%clk 00:11:12]} {[%emt 00:00:24]} Ne4 {[%clk 00:11:11]} {[%emt 00:00:52]}
20. Nxe4 {[%clk 00:10:22]} {[%emt 00:00:56]} Bxe4 {[%clk 00:10:51]} {[%emt
00:00:25]} 21. Ng4 {[%clk 00:09:48]} {[%emt 00:00:37]} Bg6 {[%clk 00:10:37]}
{[%emt 00:00:19]} 22. Qg5 {[%clk 00:09:23]} {[%emt 00:00:30]} Qc2 {[%clk
00:09:57]} {[%emt 00:00:46]} 23. Qc1 {[%clk 00:08:30]} {[%emt 00:00:57]} Qf5
{[%clk 00:09:29]} {[%emt 00:00:32]} 24. Ne3 {[%clk 00:07:52]} {[%emt 00:00:44]}
Rxc1 {[%clk 00:08:52]} {[%emt 00:00:42]} 25. Nxf5 {[%clk 00:07:53]} {[%emt
00:00:04]} Rxe1+ {[%clk 00:08:54]} {[%emt 00:00:03]} 26. Rxe1 {[%clk 00:07:57]}
{[%emt 00:00:02]} Bxf5 {[%clk 00:08:56]} {[%emt 00:00:03]} 0-1

[Event "The Schackveckan 2023: Göteborg open"]
[Site "Göteborgs schackcentrum, Vegagatan 20, Gothenburg, Sweden"]
[Date "2023.08.11"]
[Round "1.14"]
[White "Johansson, Roy"]
[Black "Bergholtz, Karl"]
[Result "1-0"]
[TimeControl "15 minutes + 5 seconds per move from move one (Round 1 - 4) / 90 minutes + 30 seconds per move from move one (Round 5 - 8)"]
[WhiteFideId "1745972"]
[BlackFideId "1756141"]
[WhiteElo "1890"]
[BlackElo "1521"]

1. d4 {[%clk 00:15:04]} {[%emt 00:00:06]} Nf6 {[%clk 00:15:09]} {[%emt
00:00:01]} 2. Bf4 {[%clk 00:15:07]} {[%emt 00:00:03]} e6 {[%clk 00:15:03]}
{[%emt 00:00:11]} 3. e3 {[%clk 00:15:09]} {[%emt 00:00:03]} d5 {[%clk
00:15:06]} {[%emt 00:00:01]} 4. Nd2 {[%clk 00:15:07]} {[%emt 00:00:08]} Bd6
{[%clk 00:14:40]} {[%emt 00:00:31]} 5. Bg3 {[%clk 00:15:02]} {[%emt 00:00:09]}
O-O {[%clk 00:14:43]} {[%emt 00:00:03]} 6. Ngf3 {[%clk 00:14:58]} {[%emt
00:00:09]} a6 {[%clk 00:14:27]} {[%emt 00:00:20]} 7. Bd3 {[%clk 00:14:53]}
{[%emt 00:00:10]} Nc6 {[%clk 00:14:30]} {[%emt 00:00:02]} 8. c3 {[%clk
00:14:36]} {[%emt 00:00:22]} Ne7 {[%clk 00:14:06]} {[%emt 00:00:29]} 9. Ne5
{[%clk 00:14:14]} {[%emt 00:00:28]} Ng6 {[%clk 00:13:53]} {[%emt 00:00:18]} 10.
O-O {[%clk 00:13:45]} {[%emt 00:00:32]} c5 {[%clk 00:12:52]} {[%emt 00:01:07]}
11. Nxg6 {[%clk 00:12:31]} {[%emt 00:01:19]} fxg6 {[%clk 00:12:43]} {[%emt
00:00:14]} 12. Bxd6 {[%clk 00:12:19]} {[%emt 00:00:16]} Qxd6 {[%clk 00:12:36]}
{[%emt 00:00:12]} 13. f4 {[%clk 00:11:42]} {[%emt 00:00:45]} c4 {[%clk
00:12:00]} {[%emt 00:00:40]} 14. Bc2 {[%clk 00:11:22]} {[%emt 00:00:24]} Bd7
{[%clk 00:10:17]} {[%emt 00:01:48]} 15. Qe2 {[%clk 00:09:00]} {[%emt 00:02:28]}
Bc6 {[%clk 00:06:48]} {[%emt 00:03:34]} 16. Nf3 {[%clk 00:08:23]} {[%emt
00:00:41]} b5 {[%clk 00:05:33]} {[%emt 00:01:21]} 17. a3 {[%clk 00:08:07]}
{[%emt 00:00:20]} Nd7 {[%clk 00:05:05]} {[%emt 00:00:34]} 18. Ng5 {[%clk
00:06:43]} {[%emt 00:01:28]} Nf6 {[%clk 00:03:11]} {[%emt 00:01:59]} 19. Rae1
{[%clk 00:05:58]} {[%emt 00:00:50]} Ne4 {[%clk 00:02:07]} {[%emt 00:01:09]} 20.
Nf3 {[%clk 00:04:35]} {[%emt 00:01:29]} Nf6 {[%clk 00:02:01]} {[%emt 00:00:11]}
21. Ne5 {[%clk 00:04:21]} {[%emt 00:00:19]} Ne4 {[%clk 00:01:51]} {[%emt
00:00:14]} 22. Bxe4 {[%clk 00:04:13]} {[%emt 00:00:13]} dxe4 {[%clk 00:01:54]}
{[%emt 00:00:02]} 23. Qg4 {[%clk 00:03:52]} {[%emt 00:00:26]} Bd5 {[%clk
00:01:38]} {[%emt 00:00:20]} 24. h4 {[%clk 00:03:13]} {[%emt 00:00:45]} Qe7
{[%clk 00:01:26]} {[%emt 00:00:17]} 25. g3 {[%clk 00:03:03]} {[%emt 00:00:14]}
Qf6 {[%clk 00:01:15]} {[%emt 00:00:17]} 26. Nd7 {[%clk 00:02:44]} {[%emt
00:00:24]} Qf5 {[%clk 00:01:20]} {[%emt 00:00:01]} 27. Qxf5 {[%clk 00:02:33]}
{[%emt 00:00:15]} Rxf5 {[%clk 00:01:21]} {[%emt 00:00:04]} 28. g4 {[%clk
00:02:20]} {[%emt 00:00:18]} Rf7 {[%clk 00:01:20]} {[%emt 00:00:05]} 29. Ne5
{[%clk 00:02:21]} {[%emt 00:00:04]} Rf6 {[%clk 00:01:11]} {[%emt 00:00:15]} 30.
Rf2 {[%clk 00:02:18]} {[%emt 00:00:08]} Rc8 {[%clk 00:00:36]} {[%emt 00:00:40]}
31. Rh2 {[%clk 00:02:14]} {[%emt 00:00:09]} a5 {[%clk 00:00:39]} {[%emt
00:00:02]} 32. Kg2 {[%clk 00:01:56]} {[%emt 00:00:22]} Rc7 {[%clk 00:00:36]}
{[%emt 00:00:09]} 33. Reh1 {[%clk 00:01:54]} {[%emt 00:00:06]} h6 {[%clk
00:00:12]} {[%emt 00:00:30]} 34. g5 {[%clk 00:01:42]} {[%emt 00:00:18]} Rf8
{[%clk 00:00:06]} {[%emt 00:00:10]} 35. Nxg6 {[%clk 00:01:39]} {[%emt
00:00:10]} Rxf4 {[%clk 00:00:08]} {[%emt 00:00:01]} 36. Nxf4 {[%clk 00:01:40]}
{[%emt 00:00:04]} 1-0

[Event "The Schackveckan 2023: Göteborg open"]
[Site "Göteborgs schackcentrum, Vegagatan 20, Gothenburg, Sweden"]
[Date "2023.08.11"]
[Round "1.15"]
[White "Torres, Lucas"]
[Black "Ottgard, Andreas"]
[Result "0-1"]
[TimeControl "15 minutes + 5 seconds per move from move one (Round 1 - 4) / 90 minutes + 30 seconds per move from move one (Round 5 - 8)"]
[WhiteFideId "1769464"]
[BlackFideId "1730592"]
[WhiteElo "1501"]
[BlackElo "1874"]

1. e4 {[%clk 00:15:07]} {[%emt 00:00:02]} d6 {[%clk 00:15:07]} {[%emt
00:00:04]} 2. d4 {[%clk 00:15:09]} {[%emt 00:00:03]} Nf6 {[%clk 00:15:09]}
{[%emt 00:00:03]} 3. Bd3 {[%clk 00:15:08]} {[%emt 00:00:06]} e5 {[%clk
00:14:54]} {[%emt 00:00:20]} 4. c3 {[%clk 00:15:05]} {[%emt 00:00:09]} g6
{[%clk 00:13:29]} {[%emt 00:01:30]} 5. Nf3 {[%clk 00:15:04]} {[%emt 00:00:06]}
Nc6 {[%clk 00:12:33]} {[%emt 00:01:01]} 6. O-O {[%clk 00:14:49]} {[%emt
00:00:19]} Bg7 {[%clk 00:11:30]} {[%emt 00:01:09]} 7. Bg5 {[%clk 00:14:34]}
{[%emt 00:00:19]} h6 {[%clk 00:11:18]} {[%emt 00:00:18]} 8. Bh4 {[%clk
00:14:24]} {[%emt 00:00:15]} O-O {[%clk 00:10:35]} {[%emt 00:00:48]} 9. Nbd2
{[%clk 00:14:25]} {[%emt 00:00:05]} g5 {[%clk 00:09:17]} {[%emt 00:01:23]} 10.
Bg3 {[%clk 00:14:26]} {[%emt 00:00:04]} exd4 {[%clk 00:08:42]} {[%emt
00:00:40]} 11. cxd4 {[%clk 00:14:22]} {[%emt 00:00:09]} Nh5 {[%clk 00:08:20]}
{[%emt 00:00:27]} 12. Nb3 {[%clk 00:14:01]} {[%emt 00:00:26]} Nxg3 {[%clk
00:07:59]} {[%emt 00:00:25]} 13. hxg3 {[%clk 00:14:05]} {[%emt 00:00:01]} Bg4
{[%clk 00:07:57]} {[%emt 00:00:07]} 14. Be2 {[%clk 00:13:40]} {[%emt 00:00:30]}
Qf6 {[%clk 00:07:55]} {[%emt 00:00:08]} 15. d5 {[%clk 00:12:22]} {[%emt
00:01:23]} Bxf3 {[%clk 00:07:38]} {[%emt 00:00:22]} 16. Bxf3 {[%clk 00:11:59]}
{[%emt 00:00:27]} Ne5 {[%clk 00:06:19]} {[%emt 00:01:24]} 17. Rb1 {[%clk
00:09:47]} {[%emt 00:02:18]} Nxf3+ {[%clk 00:04:56]} {[%emt 00:01:28]} 18. Qxf3
{[%clk 00:09:46]} {[%emt 00:00:05]} Rfe8 {[%clk 00:04:47]} {[%emt 00:00:15]} 19.
Rfc1 {[%clk 00:08:29]} {[%emt 00:01:22]} Re7 {[%clk 00:04:35]} {[%emt
00:00:18]} 20. Qxf6 {[%clk 00:08:15]} {[%emt 00:00:18]} Bxf6 {[%clk 00:04:38]}
{[%emt 00:00:01]} 21. f3 {[%clk 00:08:18]} {[%emt 00:00:03]} a5 {[%clk
00:04:21]} {[%emt 00:00:22]} 22. Rc2 {[%clk 00:07:42]} {[%emt 00:00:40]} a4
{[%clk 00:04:20]} {[%emt 00:00:07]} 23. Nd2 {[%clk 00:07:41]} {[%emt 00:00:05]}
Ra5 {[%clk 00:02:37]} {[%emt 00:01:49]} 24. Rbc1 {[%clk 00:06:43]} {[%emt
00:01:02]} Bd4+ {[%clk 00:02:40]} {[%emt 00:00:02]} 25. Kh2 {[%clk 00:06:42]}
{[%emt 00:00:06]} Bc5 {[%clk 00:02:33]} {[%emt 00:00:13]} 26. b3 {[%clk
00:03:13]} {[%emt 00:03:33]} Ra8 {[%clk 00:01:30]} {[%emt 00:01:10]} 27. Kh3
{[%clk 00:01:51]} {[%emt 00:01:26]} Kg7 {[%clk 00:01:28]} {[%emt 00:00:07]} 28.
Rc4 {[%clk 00:01:31]} {[%emt 00:00:24]} b5 {[%clk 00:00:57]} {[%emt 00:00:36]}
29. R4c2 {[%clk 00:01:29]} {[%emt 00:00:06]} a3 {[%clk 00:00:28]} {[%emt
00:00:35]} 30. Kg4 {[%clk 00:00:32]} {[%emt 00:01:02]} Kg6 {[%clk 00:00:32]}
{[%emt 00:00:02]} 31. Rh1 {[%clk 00:00:29]} {[%emt 00:00:07]} Re5 {[%clk
00:00:20]} {[%emt 00:00:17]} 32. f4 {[%clk 00:00:19]} {[%emt 00:00:15]} Ree8
{[%clk 00:00:07]} {[%emt 00:00:18]} 33. f5+ {[%clk 00:00:15]} {[%emt 00:00:09]}
Kg7 {[%clk 00:00:09]} {[%emt 00:00:02]} 34. Kf3 {[%clk 00:00:14]} {[%emt
00:00:06]} Re5 {[%clk 00:00:09]} {[%emt 00:00:07]} 35. g4 {[%clk 00:00:08]}
{[%emt 00:00:10]} Rae8 {[%clk 00:00:12]} {[%emt 00:00:03]} 36. Re1 {[%clk
00:00:07]} {[%emt 00:00:05]} R8e7 {[%clk 00:00:08]} {[%emt 00:00:09]} 37. Re2
{[%clk 00:00:09]} {[%emt 00:00:03]} Kf6 {[%clk 00:00:08]} {[%emt 00:00:05]} 38.
Re1 {[%clk 00:00:10]} {[%emt 00:00:04]} Bb4 {[%clk 00:00:10]} {[%emt 00:00:04]}
39. Rh1 {[%clk 00:00:11]} {[%emt 00:00:03]} Kg7 {[%clk 00:00:12]} {[%emt
00:00:04]} 40. Re1 {[%clk 00:00:13]} {[%emt 00:00:02]} Bc5 {[%clk 00:00:11]}
{[%emt 00:00:06]} 41. Re2 {[%clk 00:00:14]} {[%emt 00:00:04]} Bb4 {[%clk
00:00:11]} {[%emt 00:00:06]} 42. Re1 {[%clk 00:00:17]} {[%emt 00:00:01]} Bc5
{[%clk 00:00:10]} {[%emt 00:00:07]} 43. Re2 {[%clk 00:00:21]} Bb6 {[%clk
00:00:13]} {[%emt 00:00:02]} 44. Re1 {[%clk 00:00:17]} {[%emt 00:00:09]} Rxd5
{[%clk 00:00:16]} {[%emt 00:00:03]} 45. exd5 {[%clk 00:00:15]} {[%emt
00:00:06]} Rxe1 {[%clk 00:00:20]} 46. Kg3 {[%clk 00:00:15]} {[%emt 00:00:05]}
Re5 {[%clk 00:00:19]} {[%emt 00:00:06]} 47. Nf3 {[%clk 00:00:13]} {[%emt
00:00:08]} Rxd5 {[%clk 00:00:22]} {[%emt 00:00:02]} 48. Re2 {[%clk 00:00:16]}
Rd3 {[%clk 00:00:19]} {[%emt 00:00:08]} 49. Kh2 {[%clk 00:00:16]} {[%emt
00:00:04]} Rd1 {[%clk 00:00:17]} {[%emt 00:00:08]} 50. Kg3 {[%clk 00:00:18]}
{[%emt 00:00:03]} Ra1 {[%clk 00:00:19]} {[%emt 00:00:03]} 51. Ne1 {[%clk
00:00:14]} {[%emt 00:00:11]} Bd4 {[%clk 00:00:20]} {[%emt 00:00:04]} 52. Nc2
{[%clk 00:00:15]} {[%emt 00:00:02]} Be5+ {[%clk 00:00:23]} {[%emt 00:00:02]} 53.
Rxe5 {[%clk 00:00:13]} {[%emt 00:00:07]} Rxa2 {[%clk 00:00:22]} {[%emt
00:00:07]} 54. f6+ {[%clk 00:00:09]} {[%emt 00:00:08]} Kxf6 {[%clk 00:00:11]}
{[%emt 00:00:16]} 55. Rf5+ {[%clk 00:00:13]} {[%emt 00:00:02]} Ke7 {[%clk
00:00:14]} {[%emt 00:00:02]} 56. Nb4 {[%clk 00:00:14]} {[%emt 00:00:04]} Rb2
{[%clk 00:00:14]} {[%emt 00:00:05]} 57. Nd5+ {[%clk 00:00:17]} {[%emt
00:00:02]} Ke6 {[%clk 00:00:11]} {[%emt 00:00:07]} 58. Nxc7+ {[%clk 00:00:18]}
{[%emt 00:00:04]} Kd7 {[%clk 00:00:10]} {[%emt 00:00:08]} 59. Nxb5 {[%clk
00:00:15]} {[%emt 00:00:07]} Rxb3+ {[%clk 00:00:07]} {[%emt 00:00:08]} 60. Rf3
{[%clk 00:00:10]} {[%emt 00:00:10]} Rxf3+ {[%clk 00:00:07]} {[%emt 00:00:05]}
61. gxf3 {[%clk 00:00:14]} a2 {[%clk 00:00:11]} 62. Nd4 {[%clk 00:00:14]}
{[%emt 00:00:04]} a1=Q {[%clk 00:00:13]} {[%emt 00:00:04]} 63. Nf5 {[%clk
00:00:17]} {[%emt 00:00:02]} Qe5+ {[%clk 00:00:12]} {[%emt 00:00:06]} 64. Kf2
{[%clk 00:00:19]} {[%emt 00:00:02]} Qe6 {[%clk 00:00:08]} {[%emt 00:00:09]} 65.
Nd4 {[%clk 00:00:16]} {[%emt 00:00:08]} Qf6 {[%clk 00:00:09]} {[%emt 00:00:05]}
66. Nf5 {[%clk 00:00:18]} {[%emt 00:00:03]} d5 {[%clk 00:00:12]} {[%emt
00:00:02]} 67. Ke3 {[%clk 00:00:20]} {[%emt 00:00:02]} Kc6 {[%clk 00:00:14]}
{[%emt 00:00:04]} 68. Nd4+ {[%clk 00:00:23]} {[%emt 00:00:01]} Kc5 {[%clk
00:00:17]} {[%emt 00:00:03]} 69. Nb3+ {[%clk 00:00:27]} Kc4 {[%clk 00:00:21]}
{[%emt 00:00:02]} 70. Nd2+ {[%clk 00:00:31]} {[%emt 00:00:01]} Kb4 {[%clk
00:00:19]} {[%emt 00:01:15]} 71. Kd3 {[%clk 00:01:25]} {[%emt 00:00:09]} Qf4
{[%clk 00:00:13]} {[%emt 00:00:12]} 72. Ke2 {[%clk 00:01:23]} {[%emt 00:00:06]}
f5 {[%clk 00:00:15]} {[%emt 00:00:05]} 73. gxf5 {[%clk 00:01:22]} {[%emt
00:00:05]} Qxf5 {[%clk 00:00:16]} {[%emt 00:00:04]} 74. Nf1 {[%clk 00:01:22]}
{[%emt 00:00:05]} Qf4 {[%clk 00:00:15]} {[%emt 00:00:06]} 75. Ne3 {[%clk
00:01:23]} {[%emt 00:00:04]} Kc5 {[%clk 00:00:15]} {[%emt 00:00:04]} 76. Ng2
{[%clk 00:01:22]} {[%emt 00:00:06]} Qh2 {[%clk 00:00:14]} {[%emt 00:00:06]} 77.
Kf1 {[%clk 00:01:19]} {[%emt 00:00:08]} Qxg2+ {[%clk 00:00:07]} {[%emt
00:00:13]} 78. Kxg2 {[%clk 00:01:22]} {[%emt 00:00:02]} Kd4 {[%clk 00:00:12]}
{[%emt 00:00:01]} 79. Kf2 {[%clk 00:01:24]} {[%emt 00:00:02]} Kd3 {[%clk
00:00:14]} {[%emt 00:00:03]} 80. Ke1 {[%clk 00:01:25]} {[%emt 00:00:04]} Ke3
{[%clk 00:00:17]} {[%emt 00:00:02]} 81. f4 {[%clk 00:01:28]} {[%emt 00:00:02]}
gxf4 {[%clk 00:00:21]} {[%emt 00:00:01]} 82. Kf1 {[%clk 00:01:30]} {[%emt
00:00:01]} f3 {[%clk 00:00:24]} {[%emt 00:00:04]} 83. Ke1 {[%clk 00:01:34]}
{[%emt 00:00:01]} f2+ {[%clk 00:00:27]} {[%emt 00:00:02]} 84. Kf1 {[%clk
00:01:38]} {[%emt 00:00:01]} d4 {[%clk 00:00:31]} {[%emt 00:00:01]} 85. Kg2
{[%clk 00:01:42]} {[%emt 00:00:01]} Ke2 {[%clk 00:00:35]} 86. Kg3 {[%clk
00:01:46]} f1=Q {[%clk 00:00:37]} {[%emt 00:00:03]} 87. Kg4 {[%clk 00:01:49]}
{[%emt 00:00:02]} h5+ {[%clk 00:00:40]} {[%emt 00:00:02]} 88. Kxh5 {[%clk
00:01:50]} {[%emt 00:00:04]} Qg2 {[%clk 00:00:43]} {[%emt 00:00:02]} 89. Kh4
{[%clk 00:01:52]} {[%emt 00:00:02]} Kf3 {[%clk 00:00:47]} {[%emt 00:00:02]} 90.
Kh5 {[%clk 00:01:56]} {[%emt 00:00:01]} Kf4 {[%clk 00:00:51]} {[%emt 00:00:01]}
91. Kh6 {[%clk 00:01:58]} {[%emt 00:00:03]} Kf5 {[%clk 00:00:55]} 92. Kh7
{[%clk 00:02:01]} Kf6 {[%clk 00:00:59]} {[%emt 00:00:02]} 0-1